fUST/lending_fUST_20240219
["ID","MTS","AMOUNT","RATE_DAILY","PERIOD"]
[314407558,1708297844438,-500.0,0.00027945,2]
[314407559,1708297844447,-500.0,0.00027945,2]
[314407560,1708297844456,-500.0,0.00027945,2]
[314407561,1708297844464,-500.0,0.00027945,2]
[314407562,1708297844473,-500.0,0.00027945,2]
[314407563,1708297844482,-2887.38,0.00027945,2]
[314407564,1708297844491,-534.15,0.00027945,2]
[314407566,1708297844500,-500.0,0.00027945,2]
[314407568,1708297844510,-500.0,0.00027945,2]
[314407570,1708297844519,-1598.78,0.00027945,2]
[314407572,1708297844527,-1825.88,0.00027945,2]
[314407574,1708297844536,-500.0,0.00027945,2]
[314407576,1708297844545,-3184.53,0.00027945,2]
[314407578,1708297844554,-642.51,0.00027945,2]
[314407580,1708297844563,-570.24,0.00027945,2]
[314407582,1708297844572,-500.0,0.00027945,2]
[314407584,1708297844581,-504.8,0.00027945,2]
[314407586,1708297844590,-560.96,0.00027945,2]
[314407588,1708297844599,-500.0,0.00027945,2]
[314407590,1708297844609,-3661.7,0.00027945,2]
[314407592,1708297844618,-500.0,0.00027945,2]
[314407594,1708297844627,-500.0,0.00027945,2]
[314407596,1708297844637,-2843.38,0.00027945,2]
[314407598,1708297844648,-531.18,0.00027945,2]
[314407600,1708297844658,-500.0,0.00027945,2]
[314407602,1708297844667,-500.0,0.00028219,2]
[314407604,1708297844676,-500.0,0.00028219,2]
[314407606,1708297844686,-500.0,0.00028219,2]
[314407608,1708297844695,-500.0,0.00028219,2]
[314407610,1708297844704,-500.0,0.00028219,2]
[314407612,1708297844713,-2426.12,0.00028219,2]
[314407614,1708297844723,-500.0,0.00028219,2]
[314407616,1708297844732,-500.0,0.00028219,2]
[314407618,1708297844741,-500.0,0.00028219,2]
[314407620,1708297844750,-500.0,0.00028219,2]
[314407622,1708297844759,-500.0,0.00028219,2]
[314407624,1708297844768,-500.0,0.00028219,2]
[314407626,1708297844777,-500.0,0.00028219,2]
[314407628,1708297844786,-500.0,0.00028219,2]
[314407630,1708297844795,-2887.38,0.00028219,2]
[314407632,1708297844805,-534.15,0.00028219,2]
[314407633,1708297844816,-500.0,0.00028219,2]
[314407635,1708297844825,-500.0,0.00028219,2]
[314407637,1708297844834,-1598.78,0.00028219,2]
[314407639,1708297844843,-1825.88,0.00028219,2]
[314407641,1708297844853,-500.0,0.00028219,2]
[314407643,1708297844862,-3184.53,0.00028219,2]
[314407645,1708297844872,-642.51,0.00028219,2]
[314407647,1708297844881,-570.24,0.00028219,2]
[314407649,1708297844891,-500.0,0.00028219,2]
[314407651,1708297844900,-504.8,0.00028219,2]
[314407653,1708297844910,-560.96,0.00028219,2]
[314407655,1708297844919,-500.0,0.00028219,2]
[314407657,1708297844927,-3661.7,0.00028219,2]
[314407659,1708297844936,-500.0,0.00028219,2]
[314407661,1708297844945,-500.0,0.00028219,2]
[314407663,1708297844954,-2843.38,0.00028219,2]
[314407665,1708297844963,-531.18,0.00028219,2]
[314407667,1708297844972,-500.0,0.00028219,2]
[314407669,1708297844982,-500.0,0.00028493,2]
[314407671,1708297844991,-500.0,0.00028493,2]
[314407673,1708297844999,-500.0,0.00028493,2]
[314407675,1708297845008,-500.0,0.00028493,2]
[314407677,1708297845017,-500.0,0.00028493,2]
[314407679,1708297845026,-2426.12,0.00028493,2]
[314407681,1708297845035,-500.0,0.00028493,2]
[314407683,1708297845044,-500.0,0.00028493,2]
[314407685,1708297845053,-500.0,0.00028493,2]
[314407686,1708297845063,-500.0,0.00028493,2]
[314407688,1708297845074,-500.0,0.00028493,2]
[314407690,1708297845083,-500.0,0.00028493,2]
[314407692,1708297845093,-500.0,0.00028493,2]
[314407694,1708297845103,-500.0,0.00028493,2]
[314407696,1708297845112,-2887.38,0.00028493,2]
[314407698,1708297845122,-534.15,0.00028493,2]
[314407701,1708297845135,-500.0,0.00028493,2]
[314407702,1708297845152,-500.0,0.00028493,2]
[314407704,1708297845161,-1598.78,0.00028493,2]
[314407706,1708297845170,-1825.88,0.00028493,2]
[314407708,1708297845179,-220.593657,0.00028493,2]
[314407710,1708297845188,-3184.53,0.00028493,2]
[314407712,1708297845197,-642.51,0.00028493,2]
[314407714,1708297845206,-570.24,0.00028493,2]
[314407716,1708297845215,-500.0,0.00028493,2]
[314407718,1708297845224,-504.8,0.00028493,2]
[314407720,1708297845233,-560.96,0.00028493,2]
[314407722,1708297845241,-500.0,0.00028493,2]
[314407724,1708297845251,-3661.7,0.00028493,2]
[314407726,1708297845259,-500.0,0.00028493,2]
[314407728,1708297845269,-500.0,0.00028493,2]
[314407730,1708297845278,-2843.38,0.00028493,2]
[314407732,1708297845287,-531.18,0.00028493,2]
[314407734,1708297845296,-500.0,0.00028493,2]
[314407736,1708297845306,-500.0,0.00028767,2]
[314407738,1708297845314,-500.0,0.00028767,2]
[314407740,1708297845323,-500.0,0.00028767,2]
[314407742,1708297845332,-500.0,0.00028767,2]
[314407744,1708297845341,-500.0,0.00028767,2]
[314407746,1708297845354,-155.0,0.00028767,2]
[314407748,1708297845363,-2426.12,0.00028767,2]
[314407750,1708297845372,-500.0,0.00028767,2]
[314407752,1708297845381,-500.0,0.00028767,2]
[314407754,1708297845390,-500.0,0.00028767,2]
[314407755,1708297845399,-500.0,0.00028767,2]
[314407757,1708297845408,-500.0,0.00028767,2]
[314407759,1708297845417,-500.0,0.00028767,2]
[314407761,1708297845425,-500.0,0.00028767,2]
[314407763,1708297845435,-500.0,0.00028767,2]
[314407764,1708297845443,-2887.38,0.00028767,2]
[314407766,1708297845453,-534.15,0.00028767,2]
[314407768,1708297845462,-500.0,0.00028767,2]
[314407770,1708297845471,-500.0,0.00028767,2]
[314407772,1708297845480,-1598.78,0.00028767,2]
[314407774,1708297845489,-1825.88,0.00028767,2]
[314407776,1708297845498,-3184.53,0.00028767,2]
[314407778,1708297845507,-642.51,0.00028767,2]
[314407780,1708297845516,-570.24,0.00028767,2]
[314407782,1708297845525,-500.0,0.00028767,2]
[314407784,1708297845534,-504.8,0.00028767,2]
[314407786,1708297845544,-560.96,0.00028767,2]
[314407788,1708297845553,-500.0,0.00028767,2]
[314407790,1708297845562,-3661.7,0.00028767,2]
[314407792,1708297845571,-500.0,0.00028767,2]
[314407794,1708297845579,-500.0,0.00028767,2]
[314407795,1708297845589,-2843.38,0.00028767,2]
[314407797,1708297845599,-531.18,0.00028767,2]
[314407798,1708297845608,-500.0,0.00028767,2]
[314407800,1708297845617,-500.0,0.00028767,2]
[314407802,1708297845626,-153.0,0.00028767,2]
[314407803,1708297845635,-200.3472215,0.00028767,2]
[314407804,1708297845644,-224.8,0.000288,4]
[314407805,1708297845654,-224.8,0.000288,4]
[314407806,1708297845663,-224.8,0.000288,4]
[314407807,1708297845672,-224.8,0.000288,4]
[314407808,1708297845683,-224.801,0.000288,4]
[314407809,1708297845692,-5745.22631674,0.00029,2]
[314407810,1708297845702,-500.0,0.00029041,2]
[314407811,1708297845712,-500.0,0.00029041,2]
[314407812,1708297845721,-325.18887048,0.00029041,2]
[314407813,1708297845730,-500.0,0.00029041,2]
[314407814,1708297845738,-500.0,0.00029041,2]
[314407815,1708297845748,-2426.12,0.00029041,2]
[314407816,1708297845757,-500.0,0.00029041,2]
[314407817,1708297845766,-500.0,0.00029041,2]
[314407818,1708297845775,-500.0,0.00029041,2]
[314407819,1708297845785,-500.0,0.00029041,2]
[314407820,1708297845795,-500.0,0.00029041,2]
[314407821,1708297845804,-500.0,0.00029041,2]
[314407822,1708297845814,-500.0,0.00029041,2]
[314407823,1708297845827,-500.0,0.00029041,2]
[314407824,1708297845837,-2887.38,0.00029041,2]
[314407825,1708297845846,-534.15,0.00029041,2]
[314407826,1708297845855,-500.0,0.00029041,2]
[314407827,1708297845865,-500.0,0.00029041,2]
[314407828,1708297845874,-1598.78,0.00029041,2]
[314407829,1708297845883,-1825.88,0.00029041,2]
[314407830,1708297845892,-3184.53,0.00029041,2]
[314407831,1708297845903,-642.51,0.00029041,2]
[314407833,1708297845913,-570.24,0.00029041,2]
[314407835,1708297845922,-500.0,0.00029041,2]
[314407836,1708297845932,-504.8,0.00029041,2]
[314407837,1708297845942,-560.96,0.00029041,2]
[314407838,1708297845952,-500.0,0.00029041,2]
[314407839,1708297845962,-3661.7,0.00029041,2]
[314407840,1708297845971,-500.0,0.00029041,2]
[314407842,1708297845980,-500.0,0.00029041,2]
[314407843,1708297845990,-2843.38,0.00029041,2]
[314407845,1708297845999,-531.18,0.00029041,2]
[314407846,1708297846009,-500.0,0.00029041,2]
[314407847,1708297846018,-300.0,0.000293,2]
[314407848,1708297846027,-5000.0,0.00029304,5]
[314407849,1708297846036,-5000.0,0.00029304,5]
[314407850,1708297846045,-375.53,0.00029315,2]
[314407851,1708297846054,-500.0,0.00029315,2]
[314407852,1708297846064,-500.0,0.00029315,2]
[314407856,1708297846156,-500.0,0.00029315,2]
[314407857,1708297846168,-2426.12,0.00029315,2]
[314407859,1708297846178,-500.0,0.00029315,2]
[314407861,1708297846188,-500.0,0.00029315,2]
[314407862,1708297846198,-500.0,0.00029315,2]
[314407863,1708297846207,-500.0,0.00029315,2]
[314407864,1708297846216,-249.20371907,0.00029315,2]
[314407865,1708297846227,-500.0,0.00029315,2]
[314407867,1708297846237,-277.40382745,0.00029315,2]
[314407868,1708297846247,-500.0,0.00029315,2]
[314407869,1708297846257,-2887.38,0.00029315,2]
[314407870,1708297846267,-534.15,0.00029315,2]
[314407871,1708297846276,-500.0,0.00029315,2]
[314407872,1708297846285,-500.0,0.00029315,2]
[314407873,1708297846295,-1598.78,0.00029315,2]
[314407874,1708297846304,-1825.88,0.00029315,2]
[314407875,1708297846314,-3184.53,0.00029315,2]
[314407876,1708297846324,-642.51,0.00029315,2]
[314407878,1708297846333,-570.24,0.00029315,2]
[314407879,1708297846343,-500.0,0.00029315,2]
[314407880,1708297846352,-504.8,0.00029315,2]
[314407881,1708297846362,-560.96,0.00029315,2]
[314407882,1708297846371,-500.0,0.00029315,2]
[314407883,1708297846381,-3661.7,0.00029315,2]
[314407884,1708297846393,-500.0,0.00029315,2]
[314407885,1708297846402,-181.79746,0.00029315,2]
[314407886,1708297846411,-2843.38,0.00029315,2]
[314407887,1708297846421,-531.18,0.00029315,2]
[314407888,1708297846431,-500.0,0.00029315,2]
[314407889,1708297846440,-820.791,0.000294,4]
[314407890,1708297846450,-820.792,0.000294,4]
[314407891,1708297846460,-820.792,0.000294,4]
[314407892,1708297846469,-820.792,0.000294,4]
[314407893,1708297846477,-820.792,0.000294,4]
[314407894,1708297846487,-300.0,0.0002956,2]
[314407895,1708297846496,-431.66,0.00029589,2]
[314407896,1708297846505,-500.0,0.00029589,2]
[314407897,1708297846514,-500.0,0.00029589,2]
[314407898,1708297846523,-2426.12,0.00029589,2]
[314407899,1708297846532,-500.0,0.00029589,2]
[314407900,1708297846542,-500.0,0.00029589,2]
[314407901,1708297846551,-500.0,0.00029589,2]
[314407902,1708297846561,-500.0,0.00029589,2]
[314407903,1708297846571,-500.0,0.00029589,2]
[314407904,1708297846581,-500.0,0.00029589,2]
[314407905,1708297846594,-2887.38,0.00029589,2]
[314407906,1708297846604,-534.15,0.00029589,2]
[314407907,1708297846614,-500.0,0.00029589,2]
[314407908,1708297846624,-500.0,0.00029589,2]
[314407909,1708297846634,-1598.78,0.00029589,2]
[314407910,1708297846644,-1825.88,0.00029589,2]
[314407911,1708297846654,-3184.53,0.00029589,2]
[314407912,1708297846664,-642.51,0.00029589,2]
[314407913,1708297846674,-570.24,0.00029589,2]
[314407914,1708297846683,-500.0,0.00029589,2]
[314407915,1708297846693,-504.8,0.00029589,2]
[314407916,1708297846702,-530.90858838,0.00029589,2]
[314407917,1708297846865,-1157.49145566,0.00026401,3]
[314407918,1708297846876,-1396.54000046,0.00026401,3]
[314407919,1708297846892,-1033.89293801,0.00026401,3]
[314408042,1708299038461,-155.0310062,0.00024134,2]
[314408044,1708299038471,-324.60333618,0.00024135,2]
[314408046,1708299038481,-155.0310062,0.00024135,2]
[314408048,1708299038490,-162.08108185,0.00024136,2]
[314408050,1708299038500,-155.65590334,0.00024136,2]
[314408052,1708299038510,-3000.0,0.00024236,2]
[314408054,1708299038520,-77.62366623,0.00024309,2]
[314408056,1708299038533,-122.69640977,0.00024309,2]
[314408057,1708299038542,-192.906747,0.00024448,2]
[314408058,1708299038551,-2758.13374824,0.00024448,2]
[314408153,1708299046488,-855.35,0.00024448,2]
[314408154,1708299046503,-577.74,0.00024448,2]
[314408200,1708300232649,-324.60333618,0.00022247,2]
[314408202,1708300232659,-186.27878927,0.00022247,2]
[314408204,1708300232669,-163.38875591,0.00022248,2]
[314408206,1708300232680,-390.13275295,0.00022348,2]
[314408208,1708300232692,-1051.86826023,0.00022348,2]
[314408210,1708300232701,-255.191152,0.00023436,2]
[314408212,1708300232711,-958.5122116,0.00023546,2]
[314408214,1708300232720,-214.0,0.00023842,2]
[314408216,1708300232730,-6113.63538582,0.00024125,2]
[314408218,1708300232742,-6650.75536634,0.00024125,2]
[314408332,1708300238778,-168.980603,0.00022828,2]
[314408334,1708300238788,-683.52098608,0.00024125,2]
[314408376,1708300243708,-11452.08826176,0.00024125,2]
[314408378,1708300243718,-168.53483,0.0002435,2]
[314408380,1708300243727,-155.0310062,0.00024656,2]
[314408382,1708300243736,-166.541827,0.00024658,2]
[314408383,1708300243746,-4743.35422364,0.00025,2]
[314408386,1708300243755,-261.53905327,0.00025378,2]
[314408388,1708300243764,-166.541827,0.00025379,2]
[314408389,1708300243773,-200.8551578,0.00025379,7]
[314408391,1708300243783,-159.63791005,0.00025478,2]
[314408393,1708300243792,-200.0,0.00025479,2]
[314408396,1708300243801,-154.87609912,0.00025519,2]
[314408398,1708300243811,-166.541827,0.000261,2]
[314408399,1708300243820,-152.55759073,0.00026399,2]
[314408402,1708300243829,-200.24922887,0.00026399,2]
[314408403,1708300243838,-402.85440438,0.00026399,2]
[314408405,1708300243847,-508.2366302,0.00026399,2]
[314408407,1708300243856,-743.21293308,0.00026399,2]
[314408409,1708300243865,-6576.80820993,0.00026401,3]
[314408411,1708300243874,-166.541827,0.00026821,2]
[314408413,1708300243883,-367.63,0.00026885,3]
[314408416,1708300243893,-183.82,0.00026885,3]
[314408418,1708300243902,-551.48,0.00026885,3]
[314408420,1708300243911,-500.0,0.00026895,2]
[314408422,1708300243921,-500.0,0.00026895,2]
[314408424,1708300243930,-500.0,0.00026895,2]
[314408426,1708300243939,-500.0,0.00026895,2]
[314408428,1708300243948,-197.84170283,0.00026895,2]
[314408430,1708300243957,-409.32167727,0.00026895,2]
[314408431,1708300243966,-500.0,0.00026895,2]
[314408433,1708300243975,-500.0,0.00026895,2]
[314408435,1708300243984,-500.0,0.00026895,2]
[314408437,1708300243993,-500.0,0.00026895,2]
[314408439,1708300244002,-500.0,0.00026895,2]
[314408441,1708300244012,-500.0,0.00026895,2]
[314408443,1708300244022,-500.0,0.00026895,2]
[314408446,1708300244031,-500.0,0.00026895,2]
[314408447,1708300244040,-500.0,0.00026895,2]
[314408449,1708300244049,-500.0,0.00026895,2]
[314408452,1708300244058,-500.0,0.00026895,2]
[314408454,1708300244068,-500.0,0.00026895,2]
[314408455,1708300244077,-500.0,0.00026895,2]
[314408457,1708300244085,-500.0,0.00026895,2]
[314408459,1708300244094,-500.0,0.00026895,2]
[314408461,1708300244103,-229.00040332,0.00026895,2]
[314408464,1708300244114,-500.0,0.00026895,2]
[314408466,1708300244123,-500.0,0.00026895,2]
[314408468,1708300244132,-500.0,0.00026895,2]
[314408470,1708300244141,-500.0,0.00026895,2]
[314408472,1708300244150,-500.0,0.00026895,2]
[314408474,1708300244158,-522.04299059,0.00026895,2]
[314408476,1708300244167,-500.0,0.00026895,2]
[314408478,1708300244176,-500.0,0.00026895,2]
[314408479,1708300244185,-434.49456439,0.00026895,2]
[314408482,1708300244196,-500.0,0.00026895,2]
[314408484,1708300244204,-500.0,0.00026895,2]
[314408486,1708300244213,-500.0,0.00026895,2]
[314408488,1708300244222,-500.0,0.00026895,2]
[314408490,1708300244231,-500.0,0.00026895,2]
[314408492,1708300244240,-500.0,0.00026895,2]
[314408494,1708300244248,-300.0,0.00026895,2]
[314408496,1708300244258,-560.67269775,0.00026895,2]
[314408498,1708300244267,-500.0,0.00026895,2]
[314408500,1708300244276,-376.85085758,0.00026895,2]
[314408502,1708300244285,-500.0,0.00026895,2]
[314408503,1708300244295,-500.0,0.00026895,2]
[314408505,1708300244305,-506.69279652,0.00026895,2]
[314408508,1708300244315,-244.97979107,0.00026895,2]
[314408510,1708300244324,-500.0,0.00026895,2]
[314408512,1708300244333,-500.0,0.00026895,2]
[314408513,1708300244343,-500.0,0.00026895,2]
[314408516,1708300244353,-500.0,0.00026895,2]
[314408518,1708300244363,-500.0,0.00026895,2]
[314408520,1708300244372,-500.0,0.00026895,2]
[314408522,1708300244381,-500.0,0.00026895,2]
[314408524,1708300244390,-500.0,0.00026895,2]
[314408526,1708300244400,-500.0,0.00026895,2]
[314408528,1708300244408,-500.0,0.00026895,2]
[314408529,1708300244417,-500.0,0.00026895,2]
[314408531,1708300244428,-500.0,0.00026895,2]
[314408534,1708300244439,-500.0,0.00026895,2]
[314408535,1708300244448,-500.0,0.00026895,2]
[314408537,1708300244457,-500.0,0.00026895,2]
[314408539,1708300244467,-500.0,0.00026895,2]
[314408541,1708300244476,-500.0,0.00026895,2]
[314408543,1708300244485,-500.0,0.00026895,2]
[314408545,1708300244494,-500.0,0.00026895,2]
[314408547,1708300244503,-500.0,0.00026895,2]
[314408550,1708300244513,-500.0,0.00026895,2]
[314408552,1708300244524,-430.80927718,0.00026895,2]
[314408553,1708300244536,-500.0,0.00026895,2]
[314408555,1708300244545,-500.0,0.00026895,2]
[314408558,1708300244556,-500.0,0.00026895,2]
[314408560,1708300244567,-500.0,0.00026895,2]
[314408561,1708300244576,-500.0,0.00026895,2]
[314408563,1708300244586,-500.0,0.00026895,2]
[314408565,1708300244595,-500.0,0.00026895,2]
[314408568,1708300244604,-500.0,0.00026895,2]
[314408569,1708300244615,-500.0,0.00026895,2]
[314408572,1708300244625,-500.0,0.00026895,2]
[314408574,1708300244634,-500.0,0.00026895,2]
[314408575,1708300244645,-500.0,0.00026895,2]
[314408577,1708300244655,-500.0,0.00026895,2]
[314408580,1708300244664,-500.0,0.00026895,2]
[314408582,1708300244674,-500.0,0.00026895,2]
[314408584,1708300244684,-500.0,0.00026895,2]
[314408586,1708300244693,-500.0,0.00026895,2]
[314408588,1708300244702,-500.0,0.00026895,2]
[314408590,1708300244711,-500.0,0.00026895,2]
[314408592,1708300244720,-500.0,0.00026895,2]
[314408594,1708300244730,-500.0,0.00026895,2]
[314408596,1708300244739,-500.0,0.00026895,2]
[314408598,1708300244748,-500.0,0.00026895,2]
[314408600,1708300244757,-500.0,0.00026895,2]
[314408602,1708300244765,-500.0,0.00026895,2]
[314408604,1708300244774,-500.0,0.00026895,2]
[314408606,1708300244783,-500.0,0.00026895,2]
[314408608,1708300244792,-500.0,0.00026895,2]
[314408610,1708300244801,-500.0,0.00026895,2]
[314408611,1708300244810,-500.0,0.00026895,2]
[314408614,1708300244819,-593.82453779,0.00026895,2]
[314408616,1708300244828,-500.0,0.00026895,2]
[314408618,1708300244838,-500.0,0.00026895,2]
[314408620,1708300244847,-500.0,0.00026895,2]
[314408622,1708300244856,-500.0,0.00026895,2]
[314408624,1708300244865,-500.0,0.00026895,2]
[314408626,1708300244874,-500.0,0.00026895,2]
[314408628,1708300244883,-500.0,0.00026895,2]
[314408630,1708300244892,-1333.12792892,0.00026895,2]
[314408632,1708300244901,-1333.12792892,0.00026895,2]
[314408634,1708300244910,-1333.12792892,0.00026895,2]
[314408636,1708300244919,-1333.12792892,0.00026895,2]
[314408638,1708300244928,-1333.12792892,0.00026895,2]
[314408640,1708300244937,-500.0,0.00026895,2]
[314408641,1708300244946,-1333.12792892,0.00026895,2]
[314408643,1708300244955,-1333.12792892,0.00026895,2]
[314408645,1708300244965,-500.0,0.00026895,2]
[314408648,1708300244974,-1333.12792892,0.00026895,2]
[314408650,1708300244983,-500.0,0.00026895,2]
[314408651,1708300244993,-1333.12792892,0.00026895,2]
[314408653,1708300245002,-500.0,0.00026895,2]
[314408655,1708300245012,-500.0,0.00026895,2]
[314408657,1708300245021,-1333.12792892,0.00026895,2]
[314408660,1708300245034,-500.0,0.00026895,2]
[314408661,1708300245043,-561.00362994,0.00026895,2]
[314408663,1708300245053,-1333.12792892,0.00026895,2]
[314408665,1708300245062,-1333.12792892,0.00026895,2]
[314408667,1708300245071,-1333.12792892,0.00026895,2]
[314408670,1708300245081,-1333.12792892,0.00026895,2]
[314408672,1708300245090,-1333.12792892,0.00026895,2]
[314408674,1708300245099,-500.0,0.00026895,2]
[314408675,1708300245108,-1333.12792892,0.00026895,2]
[314408677,1708300245118,-1333.12792892,0.00026895,2]
[314408680,1708300245130,-500.0,0.00026895,2]
[314408682,1708300245138,-1333.12792892,0.00026895,2]
[314408684,1708300245147,-500.0,0.00026895,2]
[314408685,1708300245156,-1333.12792892,0.00026895,2]
[314408686,1708300245165,-500.0,0.00026895,2]
[314408687,1708300245174,-1333.12792892,0.00026895,2]
[314408688,1708300245183,-500.0,0.00026895,2]
[314408689,1708300245192,-500.0,0.00026895,2]
[314408690,1708300245202,-1333.12792892,0.00026895,2]
[314408691,1708300245212,-500.0,0.00026895,2]
[314408692,1708300245221,-1333.12792892,0.00026895,2]
[314408693,1708300245231,-500.0,0.00026895,2]
[314408694,1708300245240,-1333.12792892,0.00026895,2]
[314408695,1708300245249,-500.0,0.00026895,2]
[314408696,1708300245258,-1333.12792892,0.00026895,2]
[314408697,1708300245267,-500.0,0.00026895,2]
[314408698,1708300245276,-500.0,0.00026895,2]
[314408699,1708300245284,-1333.12792892,0.00026895,2]
[314408700,1708300245294,-500.0,0.00026895,2]
[314408708,1708300245377,-1333.12792892,0.00026895,2]
[314408710,1708300245386,-500.0,0.00026895,2]
[314408712,1708300245395,-1333.12792892,0.00026895,2]
[314408714,1708300245405,-500.0,0.00026895,2]
[314408716,1708300245414,-1333.12792892,0.00026895,2]
[314408718,1708300245423,-500.0,0.00026895,2]
[314408720,1708300245432,-1333.12792892,0.00026895,2]
[314408722,1708300245441,-1333.12792892,0.00026895,2]
[314408724,1708300245450,-500.0,0.00026895,2]
[314408726,1708300245459,-1333.12792892,0.00026895,2]
[314408728,1708300245468,-1333.12792892,0.00026895,2]
[314408730,1708300245477,-500.0,0.00026895,2]
[314408732,1708300245486,-1333.12792892,0.00026895,2]
[314408734,1708300245494,-500.0,0.00026895,2]
[314408736,1708300245503,-1333.12792892,0.00026895,2]
[314408738,1708300245513,-584.35223822,0.00026895,2]
[314408740,1708300245523,-1333.12792892,0.00026895,2]
[314408742,1708300245534,-1333.12792892,0.00026895,2]
[314408744,1708300245543,-1333.12792892,0.00026895,2]
[314408746,1708300245552,-1333.12792892,0.00026895,2]
[314408748,1708300245561,-1333.12792892,0.00026895,2]
[314408750,1708300245570,-1333.12792892,0.00026895,2]
[314408752,1708300245579,-1333.12792892,0.00026895,2]
[314408754,1708300245588,-1333.12792892,0.00026895,2]
[314408756,1708300245597,-1333.12792892,0.00026895,2]
[314408758,1708300245608,-1333.12792892,0.00026895,2]
[314408760,1708300245618,-1333.12792892,0.00026895,2]
[314408762,1708300245627,-1333.12792892,0.00026895,2]
[314408764,1708300245637,-1335.24400501,0.00026895,2]
[314408766,1708300245646,-1335.24400501,0.00026895,2]
[314408767,1708300245656,-1335.24400501,0.00026895,2]
[314408769,1708300245665,-1335.24400501,0.00026895,2]
[314408771,1708300245674,-1335.24400501,0.00026895,2]
[314408773,1708300245683,-1335.24400501,0.00026895,2]
[314408775,1708300245693,-499.99999999,0.00026895,2]
[314408776,1708300245702,-1335.24400501,0.00026895,2]
[314408777,1708300245711,-1335.24400501,0.00026895,2]
[314408778,1708300245720,-1335.24400501,0.00026895,2]
[314408779,1708300245729,-1335.24400501,0.00026895,2]
[314408780,1708300245738,-1335.24400501,0.00026895,2]
[314408781,1708300245747,-1335.24400501,0.00026895,2]
[314408782,1708300245756,-1335.24400501,0.00026895,2]
[314408783,1708300245765,-1335.24400501,0.00026895,2]
[314408784,1708300245774,-1335.24400501,0.00026895,2]
[314408785,1708300245783,-1335.24400501,0.00026895,2]
[314408786,1708300245792,-1335.24400501,0.00026895,2]
[314408787,1708300245802,-1335.24400501,0.00026895,2]
[314408788,1708300245811,-271199.56461552,0.00026896,2]
[314408789,1708300245820,-1012.28514252,0.00027,2]
[314408790,1708300245830,-200.658872,0.00027123,2]
[314408791,1708300245839,-199.9129214,0.00027123,2]
[314408792,1708300245848,-200.023152,0.00027123,2]
[314408793,1708300245857,-400.6387186,0.00027123,2]
[314408794,1708300245866,-153.3863894,0.00027123,2]
[314408795,1708300245875,-418.49417849,0.00027172,2]
[314408796,1708300245884,-418.49417849,0.00027297,2]
[314408797,1708300245893,-1442.00101318,0.00027348,2]
[314408798,1708300245902,-180.50850121,0.00027397,2]
[314408799,1708300245912,-500.0,0.00027397,2]
[314408800,1708300245921,-500.0,0.00027397,2]
[314408801,1708300245930,-500.0,0.00027397,2]
[314408802,1708300245939,-500.0,0.00027397,2]
[314408803,1708300245948,-500.0,0.00027397,2]
[314408804,1708300245957,-500.0,0.00027397,2]
[314408805,1708300245966,-500.0,0.00027397,2]
[314408806,1708300245975,-500.0,0.00027397,2]
[314408807,1708300245984,-500.0,0.00027397,2]
[314408808,1708300245993,-500.0,0.00027397,2]
[314408809,1708300246001,-500.0,0.00027397,2]
[314408810,1708300246010,-476.84445009,0.00027397,2]